bitfinex-derivatives/quotes_BTCF0:USTF0_20250902
["timestamp","ask_amount","ask_price","bid_price","bid_amount"]
[1756777972258,2.09105966,109560.0,109550.0,0.04921]
[1756777972955,1.61584,109560.0,109550.0,0.04921]
[1756777973156,0.7308,109560.0,109550.0,0.08547]
[1756777973350,1.20601966,109560.0,109550.0,0.08547]
[1756777973542,2.09101966,109560.0,109550.0,0.08547]
[1756777973749,2.09101966,109560.0,109550.0,0.08647]
[1756777973951,2.09101966,109560.0,109550.0,0.10272]
[1756777974257,1.20601966,109560.0,109550.0,0.10272]
[1756777974652,1.20601966,109560.0,109550.0,0.59032983]
[1756777974653,1.48340983,109560.0,109550.0,0.59032983]
[1756777975456,0.885,109560.0,109550.0,0.59032983]
[1756777975853,0.61712967,109570.0,109560.0,0.08547]
[1756777976157,1.50212967,109570.0,109560.0,0.32307983]
[1756777976748,1.50212967,109570.0,109560.0,0.08547]
[1756777977258,1.50212967,109570.0,109560.0,0.08647]
[1756777977459,1.64451984,109570.0,109560.0,0.08647]
[1756777977757,1.88212967,109570.0,109560.0,0.08647]
[1756777978259,1.50204967,109570.0,109560.0,0.08647]
[1756777979459,1.90186207,109570.0,109560.0,0.08647]
[1756777982262,1.66425224,109570.0,109560.0,0.08647]
[1756777982458,0.03853224,109570.0,109560.0,0.57407983]
[1756777982660,0.59840983,109590.0,109580.0,0.08547]
[1756777982860,0.59840983,109590.0,109580.0,0.32307983]
[1756777983054,1.48320983,109590.0,109580.0,0.32307983]
[1756777983459,0.59840983,109590.0,109580.0,0.08547]
[1756777983657,1.85316983,109590.0,109580.0,0.08547]
[1756777983863,2.34277966,109590.0,109570.0,0.04921]
[1756777984056,0.47521966,109580.0,109560.0,0.44627]
[1756777984257,1.12236983,109570.0,109560.0,0.44627]
[1756777984564,1.12236983,109570.0,109560.0,0.32307983]
[1756777985170,1.12232983,109570.0,109560.0,0.93387983]
[1756777985465,0.60040983,109590.0,109580.0,0.08043]
[1756777985654,1.24548,109590.0,109580.0,0.31803983]
[1756777985861,1.48308983,109590.0,109580.0,0.31803983]
[1756777986668,0.6166078,109600.0,109580.0,0.64494983]
[1756777986871,0.8846,109590.0,109580.0,0.67883983]
[1756777987062,1.12220983,109590.0,109580.0,0.67883983]
[1756777987774,1.47220983,109590.0,109580.0,0.40734]
[1756777988070,1.47220983,109590.0,109580.0,0.001]
[1756777988071,2.32061966,109590.0,109580.0,0.001]
[1756777988372,2.32061966,109590.0,109580.0,0.08143]
[1756777988373,0.3608,109590.0,109580.0,0.08143]
[1756777988559,1.48292983,109590.0,109580.0,0.31803983]
[1756777988760,1.12212983,109590.0,109580.0,0.08143]
[1756777988956,1.12212983,109590.0,109580.0,0.40834]
[1756777989360,1.12312983,109590.0,109580.0,0.44223]
[1756777989570,1.46312983,109590.0,109580.0,0.44223]
[1756777990069,1.46212983,109590.0,109580.0,0.44223]
[1756777990271,1.46212983,109590.0,109580.0,0.44123]
[1756777990466,1.46412983,109590.0,109580.0,0.44123]
[1756777991472,1.22452,109590.0,109580.0,0.44223]
[1756777991770,1.46212983,109590.0,109580.0,0.44223]
[1756777992372,1.82292983,109590.0,109580.0,0.08143]
[1756777992568,1.82292983,109590.0,109580.0,0.04754]
[1756777992874,1.82292983,109590.0,109580.0,0.08143]
[1756777993975,1.84275752,109590.0,109580.0,0.08143]
[1756777994361,1.84375752,109590.0,109580.0,0.08043]
[1756777994772,1.48295752,109590.0,109580.0,0.40734]
[1756777994976,0.59843752,109590.0,109580.0,0.67883983]
[1756777995177,1.48267752,109590.0,109580.0,0.67883983]
[1756777995382,1.14259752,109590.0,109580.0,0.67883983]
[1756777995578,0.02082769,109590.0,109580.0,0.91644966]
[1756777995772,0.88512,109590.0,109580.0,1.16644966]
[1756777995972,0.001,109590.0,109580.0,1.25770256]
[1756777996377,0.001,109590.0,109580.0,1.82452679]
[1756777996579,0.01819797,109600.0,109590.0,0.1716745]
[1756777996784,0.01819797,109600.0,109590.0,1.32769416]
[1756777996981,0.01819797,109600.0,109590.0,2.51057132]
[1756777997177,0.01847386,109610.0,109600.0,0.1858362]
[1756777997483,0.73026204,109630.0,109620.0,0.08043]
[1756777997674,0.01818221,109630.0,109620.0,1.36846926]
[1756777997879,0.96803894,109650.0,109640.0,0.08043]
[1756777998077,1.58564877,109650.0,109640.0,0.40734]
[1756777998887,2.14799092,109650.0,109640.0,0.3608]
[1756777999086,0.01848,109640.0,109610.0,0.39469]
[1756777999389,0.06523,109620.0,109610.0,0.67883983]
[1756777999587,0.75114209,109650.0,109620.0,0.03389]
[1756777999786,0.48004366,109650.0,109640.0,0.02343]
[1756777999992,1.36392366,109650.0,109630.0,0.39469]
[1756778000177,0.06523,109640.0,109630.0,0.44123]
[1756778000982,0.94899,109640.0,109630.0,0.44123]
[1756778001482,0.94899,109640.0,109630.0,0.42296]
[1756778001683,0.94899,109640.0,109620.0,0.29680083]
[1756778001684,2.15811083,109640.0,109610.0,0.3608]
[1756778001884,0.06523,109630.0,109620.0,0.04654]
[1756778002093,1.03435083,109630.0,109610.0,0.03389]
[1756778002286,0.06523,109620.0,109610.0,0.08043]
[1756778002491,1.75918257,109620.0,109610.0,0.04654]
[1756778002691,1.38918257,109620.0,109610.0,0.04654]
[1756778003180,1.74918257,109620.0,109610.0,0.04654]
[1756778003686,2.0459834,109620.0,109610.0,0.04654]
[1756778003986,1.9968721,109620.0,109610.0,0.02343]
[1756778004290,0.06523,109610.0,109600.0,0.47587381]
[1756778004494,0.09563127,109610.0,109600.0,0.47587381]
[1756778006090,0.09563127,109610.0,109600.0,0.47087381]
[1756778006596,0.09563127,109610.0,109600.0,0.06701381]
[1756778006597,1.0832321,109610.0,109600.0,0.06701381]
[1756778007594,0.78643127,109610.0,109600.0,0.06701381]
[1756778007795,0.77643127,109610.0,109600.0,0.06701381]
[1756778008190,1.0919557,109610.0,109600.0,0.02047381]
[1756778008397,1.3429557,109610.0,109600.0,0.04390381]
[1756778009788,1.3429557,109610.0,109600.0,0.02047381]
[1756778009993,1.392067,109610.0,109600.0,0.02047381]
[1756778011397,1.3429557,109610.0,109600.0,0.02047381]
[1756778011798,1.39195855,109610.0,109600.0,0.02047381]
[1756778012097,1.39195873,109610.0,109600.0,0.02047381]
[1756778012398,1.3429557,109610.0,109600.0,0.02047381]
[1756778012598,1.04615487,109610.0,109600.0,0.02047381]
[1756778012797,1.3429557,109610.0,109600.0,0.02047381]
[1756778013199,1.39197957,109610.0,109600.0,0.02047381]
[1756778013398,1.39198164,109610.0,109600.0,0.02047381]
[1756778014096,1.3429557,109610.0,109600.0,0.02047381]
[1756778014295,1.39198164,109610.0,109600.0,0.02047381]
[1756778014496,1.3429557,109610.0,109600.0,0.02047381]
[1756778017396,1.39198164,109610.0,109600.0,0.02047381]
[1756778019998,0.01262,109590.0,109580.0,0.0821]
[1756778020209,1.93278083,109590.0,109580.0,0.0821]
[1756778020498,1.9631821,109590.0,109580.0,0.04799]
[1756778020706,1.97224667,109590.0,109580.0,0.04799]
[1756778021605,1.97224667,109590.0,109580.0,0.0821]
[1756778022597,1.67544584,109590.0,109580.0,0.0821]
[1756778022901,1.97224667,109590.0,109580.0,0.0821]
[1756778023303,1.97324667,109590.0,109580.0,0.0821]
[1756778023609,1.67644584,109590.0,109580.0,0.0821]
[1756778025410,1.91407029,109590.0,109580.0,0.0821]
[1756778026409,1.98739814,109590.0,109580.0,0.0821]
[1756778027005,1.98739814,109590.0,109580.0,0.04799]
[1756778027208,0.003,109580.0,109570.0,0.02006146]
[1756778027414,0.01262,109570.0,109560.0,0.0821]
[1756778027705,1.88356572,109570.0,109560.0,0.0821]
[1756778027907,0.003,109560.0,109550.0,0.04836]
[1756778028108,0.98104445,109560.0,109550.0,0.09635]
[1756778028307,1.01144572,109560.0,109550.0,0.09635]
[1756778028506,0.04302127,109560.0,109550.0,0.09635]
[1756778028817,0.92510127,109560.0,109550.0,0.09635]
[1756778030904,0.92494127,109560.0,109550.0,0.09635]
[1756778031902,0.04302127,109560.0,109550.0,0.09635]
[1756778032104,0.92490127,109560.0,109550.0,0.09635]
[1756778032511,0.92490127,109560.0,109550.0,0.0821]
[1756778033013,0.92490127,109560.0,109550.0,0.0964]
[1756778034510,0.04302127,109560.0,109550.0,0.0964]
[1756778034712,0.92490127,109560.0,109550.0,0.0964]
[1756778040516,0.04302127,109560.0,109550.0,0.0964]
[1756778040718,0.92446127,109560.0,109550.0,0.0964]
[1756778041711,0.92446127,109560.0,109550.0,0.0821]
[1756778042920,1.21960314,109560.0,109550.0,0.02469]
[1756778043814,1.21960314,109560.0,109550.0,0.04799]
[1756778044918,0.92446127,109560.0,109550.0,0.04799]
[1756778045116,1.21960314,109560.0,109550.0,0.04799]
[1756778045518,0.33816314,109560.0,109550.0,0.04799]
[1756778045822,1.21912314,109560.0,109550.0,0.08488]
[1756778046314,0.92402127,109560.0,109550.0,0.09903]
[1756778046515,0.92394127,109560.0,109550.0,0.09903]
[1756778047415,0.04302127,109560.0,109550.0,0.09903]
[1756778047619,0.92386127,109560.0,109550.0,0.09903]
[1756778048218,0.92386127,109560.0,109550.0,0.08488]
[1756778050020,0.04302127,109560.0,109550.0,0.08488]
[1756778050229,0.92382127,109560.0,109550.0,0.08488]
[1756778051528,1.53154941,109560.0,109550.0,0.08488]
[1756778051928,1.54654941,109560.0,109550.0,0.08488]
[1756778052519,0.66574941,109560.0,109550.0,0.08488]
[1756778052724,1.54622941,109560.0,109550.0,0.08488]
[1756778052924,1.54622941,109560.0,109550.0,0.44568]
[1756778053228,0.04540127,109560.0,109550.0,0.70983]
[1756778053424,0.05021127,109560.0,109550.0,0.94755814]
[1756778053624,0.05802127,109560.0,109550.0,0.70983]
[1756778055529,0.04302127,109560.0,109550.0,0.70983]
[1756778056428,0.04302127,109560.0,109550.0,0.94755814]
[1756778058327,0.04002127,109560.0,109550.0,0.94755814]
[1756778059534,0.03040127,109560.0,109550.0,0.94755814]
[1756778059932,0.03521127,109560.0,109550.0,0.94755814]
[1756778061030,0.03040127,109560.0,109550.0,0.94755814]
[1756778064426,0.25587203,109570.0,109550.0,0.91066814]
[1756778064631,0.04154607,109570.0,109560.0,0.03689]
[1756778064836,0.27927421,109570.0,109560.0,0.08405]
[1756778065134,0.05416607,109570.0,109560.0,0.08405]
[1756778065333,0.66189421,109570.0,109560.0,0.08405]
[1756778065839,0.29189421,109570.0,109560.0,0.08405]
[1756778066038,0.65189421,109570.0,109560.0,0.08405]
[1756778068444,0.65289421,109570.0,109560.0,0.08405]
[1756778070336,0.05516607,109570.0,109560.0,0.08405]
[1756778070538,0.66289421,109570.0,109560.0,0.08405]
[1756778072144,0.64475032,109570.0,109560.0,0.08405]
[1756778076345,0.27475032,109570.0,109560.0,0.08405]
[1756778078650,0.84475032,109570.0,109560.0,0.04716]
[1756778078951,0.01262,109560.0,109550.0,0.10472147]
[1756778079152,0.57034814,109560.0,109550.0,0.10472147]
[1756778079344,0.59375032,109560.0,109550.0,0.10472147]
[1756778082566,0.01262,109550.0,109540.0,0.46497309]
[1756778083253,0.01262,109550.0,109540.0,0.70270123]
[1756778084243,0.01262,109550.0,109540.0,0.94270123]
[1756778085456,0.01262,109550.0,109540.0,1.18041985]
[1756778085753,0.01262,109550.0,109540.0,0.70497309]
[1756778085954,0.01262,109550.0,109540.0,0.94269647]
[1756778086155,0.01262,109550.0,109540.0,0.70497309]
[1756778086557,0.25034338,109550.0,109540.0,0.94269647]
[1756778086759,0.57034338,109550.0,109540.0,0.46497309]
[1756778087255,0.57926994,109550.0,109540.0,0.46497309]
[1756778088153,0.57926994,109550.0,109540.0,0.70269647]
[1756778088357,0.57926994,109550.0,109540.0,0.44497]
[1756778088654,0.57926994,109550.0,109540.0,0.04827]
[1756778089050,1.45674994,109550.0,109540.0,0.04827]
[1756778090250,0.34154656,109550.0,109540.0,0.08417]
[1756778090456,0.02154656,109550.0,109540.0,0.08417]
[1756778090753,0.25926994,109550.0,109540.0,0.32189338]
[1756778091256,0.25926994,109550.0,109540.0,0.08417]
[1756778091557,0.56926994,109550.0,109540.0,0.04827]
[1756778091762,0.56926994,109550.0,109540.0,0.08417]
[1756778092056,0.56926994,109550.0,109540.0,0.04827]
[1756778094161,0.56926994,109550.0,109540.0,0.08417]
[1756778098567,0.56926994,109550.0,109540.0,0.04827]
[1756778099967,0.56926994,109550.0,109530.0,0.70270177]
[1756778099968,0.01262,109540.0,109530.0,0.70270177]
[1756778100265,0.74806676,109540.0,109530.0,0.34190177]
[1756778100463,1.20886676,109540.0,109530.0,0.06827839]
[1756778100659,1.20886676,109540.0,109530.0,0.04392839]
[1756778101071,2.08534676,109540.0,109530.0,0.06827839]
[1756778101558,0.86886676,109540.0,109530.0,0.06927839]
[1756778101760,2.08534676,109540.0,109530.0,0.06927839]
[1756778102463,2.08534676,109540.0,109530.0,0.06827839]
[1756778102661,2.08634676,109540.0,109530.0,0.06827839]
[1756778103163,0.37442,109540.0,109530.0,0.10417839]
[1756778103360,0.84986676,109540.0,109530.0,0.10417839]
[1756778103561,0.84986676,109540.0,109530.0,0.34190177]
[1756778103562,1.35158338,109540.0,109530.0,0.34190177]
[1756778103863,0.8899,109540.0,109530.0,0.70270177]
[1756778104069,0.8899,109540.0,109530.0,0.68269338]
[1756778104268,1.12762338,109540.0,109530.0,0.68269338]
[1756778105771,0.25134338,109540.0,109530.0,0.68269338]
[1756778106471,0.25134338,109540.0,109530.0,0.44497]
[1756778106672,0.25134338,109540.0,109530.0,0.68269338]
[1756778106866,0.01362,109540.0,109530.0,0.68269338]
[1756778107065,0.25134338,109540.0,109530.0,0.68269338]
[1756778108372,1.12722338,109540.0,109530.0,0.68269338]
[1756778108567,1.12722338,109540.0,109530.0,0.08417]
[1756778108773,1.12722338,109540.0,109530.0,0.32189338]
[1756778108973,2.07574676,109540.0,109530.0,0.08417]
[1756778109367,2.07574676,109540.0,109530.0,0.04827]
[1756778109570,2.07274676,109540.0,109520.0,0.63437338]
[1756778109768,0.25034338,109530.0,109520.0,0.68327338]
[1756778110474,0.25034338,109530.0,109520.0,0.44555]
[1756778110671,0.25034338,109530.0,109520.0,0.68327338]
[1756778111175,0.25134338,109530.0,109520.0,0.68327338]
[1756778112079,0.25134338,109530.0,109520.0,0.76327338]
[1756778113071,0.25134338,109530.0,109520.0,0.68327338]
[1756778113269,0.59134338,109530.0,109520.0,0.44555]
[1756778113471,0.25134338,109530.0,109520.0,0.68327338]
[1756778116077,0.25134338,109530.0,109520.0,0.44555]
[1756778116273,0.25134338,109530.0,109520.0,0.68327338]
[1756778120575,0.01062,109530.0,109520.0,0.68327338]
[1756778120783,0.25134338,109530.0,109520.0,0.68327338]
[1756778121482,0.24834338,109530.0,109520.0,0.68327338]
[1756778123979,0.24353338,109530.0,109520.0,0.68327338]
[1756778124177,0.23872338,109530.0,109520.0,0.68327338]
[1756778124685,0.24834338,109530.0,109520.0,0.68327338]
[1756778124877,0.25134338,109530.0,109520.0,0.68327338]
[1756778125177,0.25134338,109530.0,109520.0,0.59852338]
[1756778125377,1.12289567,109530.0,109520.0,0.0489]
[1756778125580,1.47289567,109530.0,109520.0,0.0489]
[1756778125984,0.00962,109510.0,109500.0,0.09931]
[1756778126178,0.57034338,109510.0,109500.0,0.09931]
[1756778126378,0.01262,109500.0,109490.0,0.10538018]
[1756778126698,2.08617198,109500.0,109490.0,0.10538018]
[1756778126887,2.08617198,109500.0,109490.0,0.06953018]
[1756778127281,2.08517198,109500.0,109490.0,0.06953018]
[1756778127583,2.08417198,109500.0,109490.0,0.06953018]
[1756778128280,2.15762494,109500.0,109490.0,0.06953018]
[1756778128986,2.16675988,109500.0,109490.0,0.06953018]
[1756778129287,2.16775988,109500.0,109480.0,0.03585]
[1756778129585,0.84046676,109490.0,109480.0,0.0489]
[1756778129787,0.00422,109480.0,109470.0,0.1053758]
[1756778130174,0.23772338,109480.0,109470.0,0.70389918]
[1756778130389,0.36502,109490.0,109480.0,0.08475]
[1756778130681,1.47682338,109490.0,109480.0,0.32247338]
[1756778130984,1.50079045,109490.0,109480.0,0.08475]
[1756778131280,1.47682338,109490.0,109480.0,0.08475]
[1756778131880,1.47782338,109490.0,109480.0,0.08475]
[1756778132692,1.47882338,109490.0,109480.0,0.08475]
[1756778134078,1.11802338,109490.0,109480.0,0.08475]
[1756778134279,0.8803,109490.0,109480.0,0.08475]
[1756778134479,1.11786338,109490.0,109480.0,0.08475]
[1756778134781,0.00622,109490.0,109480.0,1.55099676]
[1756778134982,0.002,109490.0,109480.0,2.51625306]
[1756778135288,0.002,109490.0,109480.0,2.75397644]
[1756778135591,0.002,109490.0,109480.0,2.0408063]
[1756778135777,0.23972338,109490.0,109480.0,1.31943]
[1756778135981,0.24072338,109490.0,109480.0,1.55715338]
[1756778136387,0.003,109490.0,109480.0,0.68327338]
[1756778136587,0.24394338,109490.0,109480.0,0.68327338]
[1756778137688,0.24294338,109490.0,109480.0,0.68327338]
[1756778137986,0.00522,109490.0,109480.0,0.68327338]
[1756778138182,0.002,109490.0,109480.0,0.92099676]
[1756778138376,0.002,109490.0,109480.0,1.27099676]
[1756778138578,0.002,109490.0,109480.0,1.61233356]
[1756778138786,0.002,109490.0,109480.0,1.85005694]
[1756778139390,0.002,109490.0,109480.0,1.61233356]
[1756778140490,0.002,109490.0,109480.0,1.85005694]
[1756778142081,0.01837783,109500.0,109490.0,0.1258384]
[1756778142282,0.04263443,109520.0,109510.0,0.0819]
[1756778142484,0.01841443,109520.0,109510.0,0.68042338]
[1756778142684,0.01841443,109520.0,109510.0,1.01042338]
[1756778142887,0.01841443,109520.0,109510.0,0.68042338]
[1756778143195,0.08594443,109520.0,109510.0,0.68042338]
[1756778143395,0.06656443,109520.0,109510.0,0.68042338]
[1756778143701,0.06656443,109520.0,109510.0,1.01042338]
[1756778143993,0.32366781,109520.0,109510.0,0.68042338]
[1756778144789,0.32566781,109520.0,109510.0,0.68042338]
[1756778145005,0.09094443,109520.0,109510.0,0.68042338]
[1756778145192,0.32866781,109520.0,109510.0,0.68042338]
[1756778145597,0.09094443,109520.0,109510.0,0.4427]
[1756778146396,0.08794443,109520.0,109510.0,0.4427]
[1756778146691,0.02141443,109520.0,109510.0,1.04057546]
[1756778146895,0.02141443,109520.0,109510.0,0.68057546]
[1756778147195,0.01941443,109520.0,109510.0,0.68057546]
[1756778147395,0.02041443,109520.0,109510.0,0.68057546]
[1756778147695,0.08794443,109520.0,109510.0,0.68057546]
[1756778150992,0.06856443,109520.0,109510.0,0.68057546]
[1756778151590,0.04463443,109520.0,109510.0,0.68057546]
[1756778152098,0.08794443,109520.0,109510.0,0.4427]
[1756778152493,0.06856443,109520.0,109510.0,0.68057546]
[1756778152690,0.08794443,109520.0,109510.0,0.68057546]
[1756778154398,0.04463443,109520.0,109510.0,0.68057546]
[1756778154792,0.06856443,109520.0,109510.0,0.68057546]
[1756778154992,0.08794443,109520.0,109510.0,0.68057546]
[1756778156594,0.32581989,109520.0,109510.0,0.4427]
[1756778156901,0.88581989,109520.0,109510.0,0.0819]
[1756778157098,2.11905989,109520.0,109510.0,0.02348]
[1756778157294,0.06753,109510.0,109500.0,0.0819]
[1756778157486,0.98620546,109510.0,109500.0,0.02348]
[1756778157692,0.98620546,109510.0,109480.0,0.0819]
[1756778157693,0.01938,109490.0,109480.0,0.0819]
[1756778157888,0.30540546,109490.0,109480.0,0.0819]
[1756778159403,0.30540546,109490.0,109480.0,0.0849]
[1756778160201,0.92531904,109490.0,109480.0,0.02848]
[1756778160392,0.92531904,109490.0,109480.0,0.05239]
[1756778160593,1.79751904,109490.0,109480.0,0.0869]
[1756778160797,1.79751904,109490.0,109480.0,0.0849]
[1756778161001,1.79851904,109490.0,109480.0,0.0849]
[1756778161396,0.01938,109480.0,109470.0,0.1025258]
[1756778161699,1.02620546,109480.0,109470.0,0.1025258]
[1756778161892,1.78836546,109480.0,109470.0,0.1025258]
[1756778163403,1.55049,109480.0,109470.0,0.1025258]
[1756778164703,1.55037,109480.0,109470.0,0.1025258]
[1756778165401,1.62351614,109480.0,109470.0,0.1025258]
[1756778165597,0.14075614,109480.0,109470.0,0.1025258]
[1756778165804,0.07784358,109490.0,109480.0,0.08129]
[1756778166006,0.94980358,109490.0,109480.0,0.08129]
[1756778166196,0.94069,109490.0,109480.0,0.08129]
[1756778166904,1.21693106,109490.0,109470.0,0.4165858]
[1756778167104,0.06873,109480.0,109470.0,0.4627158]
[1756778167306,0.06873,109480.0,109470.0,0.0667558]
[1756778167899,0.06873,109480.0,109470.0,0.1019158]
[1756778168203,1.26221983,109490.0,109480.0,0.03516]
[1756778168403,1.31152983,109490.0,109480.0,0.08129]
[1756778168598,0.07073,109490.0,109480.0,0.08129]
[1756778168795,0.94253,109490.0,109480.0,0.08129]
[1756778168999,0.001,109490.0,109480.0,0.71824796]
[1756778169302,0.42953,109510.0,109500.0,0.04613]
[1756778169501,0.0248,109510.0,109500.0,0.09505]
[1756778169703,0.94049,109510.0,109500.0,0.09505]
[1756778170006,0.94049,109510.0,109500.0,0.08129]
[1756778170704,0.94349,109510.0,109500.0,0.08129]
[1756778171505,0.94349,109510.0,109500.0,0.09505]
[1756778171712,0.94349,109510.0,109500.0,0.08129]
[1756778171906,0.94749,109510.0,109500.0,0.08129]
[1756778172406,0.94749,109510.0,109500.0,0.09505]
[1756778174111,0.07573,109510.0,109500.0,0.09505]
[1756778174310,0.007,109510.0,109500.0,1.00147106]
[1756778175710,0.0318,109510.0,109500.0,0.70585]
[1756778176208,0.007,109510.0,109500.0,0.70585]
[1756778176913,0.007,109510.0,109500.0,1.00147106]
[1756778180902,0.07573,109510.0,109500.0,0.45585]
[1756778181106,0.07573,109510.0,109500.0,0.08129]
[1756778181508,0.0318,109510.0,109500.0,0.45585]
[1756778181714,0.07573,109510.0,109500.0,0.45585]
[1756778183318,0.007,109510.0,109500.0,0.45585]
[1756778183519,0.007,109510.0,109500.0,0.75147106]
[1756778183718,0.07573,109510.0,109500.0,0.45585]
[1756778184711,0.007,109510.0,109500.0,0.45585]
[1756778185418,0.007,109510.0,109500.0,0.69373981]
[1756778186222,0.007,109510.0,109500.0,1.00373981]
[1756778186523,0.07573,109510.0,109500.0,0.45585]
[1756778186733,0.05635,109510.0,109500.0,0.69373981]
[1756778188523,0.07573,109510.0,109500.0,0.69373981]
[1756778189723,0.007,109510.0,109500.0,0.69373981]
[1756778190228,0.07573,109510.0,109500.0,0.69373981]
[1756778191531,0.07573,109510.0,109500.0,0.45585]
[1756778191733,0.07573,109510.0,109500.0,0.69373981]
[1756778192533,0.07573,109510.0,109500.0,0.45585]
[1756778192830,0.31361981,109510.0,109500.0,0.09505]
[1756778193033,0.07573,109510.0,109500.0,0.09505]
[1756778193338,0.007,109510.0,109500.0,0.69373981]
[1756778195140,0.07572,109510.0,109500.0,0.45585]
[1756778196132,0.31360981,109510.0,109500.0,0.45585]
[1756778200941,0.91360981,109510.0,109500.0,0.09505]
[1756778201246,1.29725868,109510.0,109500.0,0.08129]
[1756778201438,1.29725868,109510.0,109500.0,0.04613]
[1756778201638,0.06729,109500.0,109490.0,0.08462]
[1756778201839,0.06729,109490.0,109480.0,0.08462]
[1756778202040,0.66597981,109490.0,109480.0,0.08462]
[1756778203048,0.66697981,109490.0,109480.0,0.08462]
[1756778203444,1.53733981,109490.0,109480.0,0.08462]
[1756778204149,1.53725981,109490.0,109480.0,0.08462]
[1756778204447,1.84725981,109490.0,109480.0,0.08462]
[1756778204640,2.09725981,109490.0,109480.0,0.04956]
[1756778204833,2.12725981,109490.0,109480.0,0.04956]
[1756778205034,2.12725981,109490.0,109480.0,0.02472]
[1756778205232,1.80725981,109490.0,109480.0,0.04956]
[1756778205436,1.80744787,109490.0,109480.0,0.04956]
[1756778205643,2.14744787,109490.0,109480.0,0.04956]
[1756778206054,2.14744787,109490.0,109480.0,0.08462]
[1756778206550,2.14744787,109490.0,109480.0,0.04956]
[1756778207246,1.27816787,109490.0,109480.0,0.04956]
[1756778207550,2.14728787,109490.0,109480.0,0.08462]
[1756778208742,2.38536574,109490.0,109470.0,0.4164858]
[1756778208946,0.06729,109480.0,109470.0,0.4660458]
[1756778209144,1.41244574,109480.0,109470.0,0.4660458]
[1756778209548,1.17436787,109480.0,109470.0,0.4660458]
[1756778209752,0.30536787,109480.0,109470.0,0.4660458]
[1756778209953,1.17428787,109480.0,109470.0,0.4660458]
[1756778210344,0.06729,109480.0,109470.0,0.4660458]
[1756778210544,1.17432787,109480.0,109470.0,0.70412367]
[1756778210746,1.17432787,109480.0,109470.0,0.4660458]
[1756778211555,0.06729,109480.0,109470.0,0.4660458]
[1756778212055,0.54344574,109480.0,109470.0,0.4309858]
[1756778212350,1.25424574,109480.0,109470.0,0.1052458]
[1756778212553,0.01938,109470.0,109460.0,0.08462]
[1756778212744,1.17416787,109470.0,109460.0,0.08462]
[1756778213760,1.18314894,109470.0,109460.0,0.08562]
[1756778214753,1.18314894,109470.0,109460.0,0.08662]
[1756778216256,1.20314894,109470.0,109460.0,0.08662]
[1756778216857,1.18314894,109470.0,109460.0,0.08662]
[1756778217861,1.18314894,109470.0,109460.0,0.05156]
[1756778218159,1.20314894,109470.0,109460.0,0.08662]
[1756778218362,0.96507107,109470.0,109460.0,0.08662]
[1756778218659,1.20314894,109470.0,109460.0,0.08662]
[1756778219259,1.18314894,109470.0,109460.0,0.08662]
[1756778220054,1.51314894,109470.0,109460.0,0.08662]
[1756778220259,1.20314894,109470.0,109460.0,0.08662]
[1756778220555,1.18314894,109470.0,109460.0,0.08662]
[1756778220761,1.18298894,109470.0,109460.0,0.32469787]
[1756778221150,1.18298894,109470.0,109460.0,0.08662]
[1756778221568,1.56298894,109470.0,109460.0,0.08662]
[1756778221860,1.18298894,109470.0,109460.0,0.08662]
[1756778225365,1.18298894,109470.0,109460.0,0.05156]
[1756778225758,1.20298894,109470.0,109460.0,0.05156]
[1756778226063,1.18298894,109470.0,109460.0,0.05156]
[1756778226454,1.52298894,109470.0,109460.0,0.05156]
[1756778226965,1.18298894,109470.0,109460.0,0.05156]
[1756778227162,1.20298894,109470.0,109460.0,0.05156]
[1756778227362,1.18298894,109470.0,109460.0,0.05156]
[1756778227761,1.18298894,109470.0,109460.0,0.08871]
[1756778228964,1.18274894,109470.0,109460.0,0.08871]
[1756778230467,0.94467107,109470.0,109460.0,0.08871]
[1756778230663,1.18274894,109470.0,109460.0,0.08871]
[1756778230968,1.18274894,109470.0,109460.0,0.32678787]
[1756778232360,1.20544051,109470.0,109460.0,0.32678787]
[1756778232766,1.20544051,109470.0,109460.0,0.08871]
[1756778233168,0.33720051,109470.0,109460.0,0.08871]
[1756778233366,1.19641944,109470.0,109460.0,0.08871]
[1756778233969,1.19641944,109470.0,109460.0,0.32678787]
[1756778234171,0.95834157,109470.0,109460.0,0.32678787]
[1756778234471,1.19641944,109470.0,109460.0,0.32678787]
[1756778234971,1.19641944,109470.0,109460.0,0.08871]
[1756778235168,1.19641944,109470.0,109460.0,0.32678787]
[1756778235358,1.20548852,109470.0,109460.0,0.32678787]
[1756778235564,0.95826157,109470.0,109460.0,0.32678787]
[1756778235760,1.55633944,109470.0,109460.0,0.002]
[1756778236166,1.31826157,109470.0,109460.0,0.002]
[1756778236371,1.55633944,109470.0,109460.0,0.05021]
[1756778236765,1.55633944,109470.0,109460.0,0.04921]
[1756778236963,2.40621731,109470.0,109440.0,0.39795]
[1756778237166,0.30467787,109450.0,109440.0,0.44616]
[1756778237363,1.17271787,109450.0,109440.0,0.44616]
[1756778237569,1.53351787,109450.0,109440.0,0.08536]
[1756778238072,1.53351787,109450.0,109440.0,0.04821]
[1756778238272,1.85258421,109450.0,109440.0,0.02449]
[1756778238773,1.54258421,109450.0,109440.0,0.02449]
[1756778238970,1.87258421,109450.0,109440.0,0.02449]
[1756778239372,0.0666,109440.0,109430.0,0.68423787]
[1756778239565,0.30467787,109440.0,109430.0,0.74423787]
[1756778240773,0.30567787,109440.0,109430.0,0.74423787]
[1756778241074,0.30567787,109440.0,109430.0,0.44616]
[1756778242067,1.17359787,109440.0,109430.0,0.68423787]
[1756778243480,0.30567787,109440.0,109430.0,0.68423787]
[1756778243678,1.17355787,109440.0,109430.0,0.68423787]
[1756778244166,0.93548,109440.0,109430.0,0.68423787]
[1756778244477,1.17355787,109440.0,109430.0,0.68423787]
[1756778244871,0.30567787,109440.0,109430.0,0.68423787]
[1756778245074,1.17347787,109440.0,109430.0,0.68423787]
[1756778245579,0.30567787,109440.0,109430.0,0.68423787]
[1756778245782,1.17347787,109440.0,109430.0,0.68423787]
[1756778248672,1.17347787,109440.0,109430.0,0.44616]
[1756778248874,1.17335787,109440.0,109430.0,0.68423787]
[1756778249185,0.30567787,109440.0,109430.0,0.68423787]
[1756778249482,1.17331787,109440.0,109430.0,0.68423787]
[1756778249681,0.30567787,109440.0,109430.0,0.68423787]
[1756778250081,1.17327787,109440.0,109430.0,0.68423787]
[1756778251277,0.30567787,109440.0,109430.0,0.68423787]
[1756778251480,0.30567787,109440.0,109430.0,1.03423787]